fUSD/lending_fUSD_20250511
["ID","MTS","AMOUNT","RATE_DAILY","PERIOD"]
[360752141,1746973832352,-1069.14549955,0.00014254,2]
[360752142,1746973832363,-300.0,0.00014254,2]
[360752143,1746973832373,-241.19442516,0.00014255,2]
[360752144,1746973832383,-500.0,0.00014255,2]
[360752145,1746973832392,-500.0,0.00014255,2]
[360752146,1746973832402,-500.0,0.00014255,2]
[360752147,1746973832415,-500.0,0.00014255,2]
[360752148,1746973832425,-500.0,0.00014255,2]
[360752149,1746973832436,-500.0,0.00014255,2]
[360752150,1746973832447,-392.67426046,0.00014255,2]
[360752151,1746973832456,-500.0,0.00014255,2]
[360752152,1746973832466,-500.0,0.00014255,2]
[360752153,1746973832476,-500.0,0.00014255,2]
[360752154,1746973832486,-500.0,0.00014255,2]
[360752155,1746973832496,-500.0,0.00014255,2]
[360752156,1746973832507,-500.0,0.00014255,2]
[360752157,1746973832517,-500.0,0.00014255,2]
[360752158,1746973832531,-500.0,0.00014255,2]
[360752159,1746973832540,-500.0,0.00014255,2]
[360752160,1746973832552,-273.63368726,0.00014255,2]
[360752161,1746973832563,-500.0,0.00014255,2]
[360752162,1746973832574,-500.0,0.00014255,2]
[360752163,1746973832585,-500.0,0.00014255,2]
[360752164,1746973832596,-500.0,0.00014255,2]
[360752165,1746973832607,-500.0,0.00014255,2]
[360752166,1746973832617,-500.0,0.00014255,2]
[360752167,1746973832627,-500.0,0.00014255,2]
[360752168,1746973832638,-500.0,0.00014255,2]
[360752169,1746973832648,-500.0,0.00014255,2]
[360752170,1746973832658,-500.0,0.00014255,2]
[360752171,1746973832668,-500.0,0.00014255,2]
[360752172,1746973832678,-500.0,0.00014255,2]
[360752173,1746973832689,-500.0,0.00014255,2]
[360752174,1746973832699,-500.0,0.00014255,2]
[360752175,1746973832708,-500.0,0.00014255,2]
[360752176,1746973832718,-500.0,0.00014255,2]
[360752177,1746973832728,-500.0,0.00014255,2]
[360752178,1746973832739,-500.0,0.00014255,2]
[360752179,1746973832748,-500.0,0.00014255,2]
[360752180,1746973832758,-500.0,0.00014255,2]
[360752181,1746973832769,-500.0,0.00014255,2]
[360752182,1746973832779,-500.0,0.00014255,2]
[360752183,1746973832789,-500.0,0.00014255,2]
[360752184,1746973832799,-500.0,0.00014255,2]
[360752185,1746973832809,-500.0,0.00014255,2]
[360752186,1746973832819,-500.0,0.00014255,2]
[360752187,1746973832829,-500.0,0.00014255,2]
[360752188,1746973832840,-500.0,0.00014255,2]
[360752189,1746973832850,-1100.55847229,0.00014255,2]
[360752190,1746973832860,-1100.55847229,0.00014255,2]
[360752191,1746973832870,-1100.55847229,0.00014255,2]
[360752192,1746973832880,-1100.55847229,0.00014255,2]
[360752193,1746973832890,-1100.55847229,0.00014255,2]
[360752194,1746973832900,-1100.55847229,0.00014255,2]
[360752195,1746973832910,-1100.55847229,0.00014255,2]
[360752196,1746973832921,-1100.55847229,0.00014255,2]
[360752197,1746973832931,-1100.55847229,0.00014255,2]
[360752198,1746973832940,-1100.55847229,0.00014255,2]
[360752199,1746973832950,-1100.55847229,0.00014255,2]
[360752200,1746973832969,-1100.55847229,0.00014255,2]
[360752201,1746973832979,-1100.55847229,0.00014255,2]
[360752202,1746973832989,-1100.55847229,0.00014255,2]
[360752203,1746973832999,-1100.55847229,0.00014255,2]
[360752204,1746973833010,-1100.55847229,0.00014255,2]
[360752205,1746973833020,-1100.55847229,0.00014255,2]
[360752206,1746973833030,-1100.55847229,0.00014255,2]
[360752207,1746973833040,-1100.55847229,0.00014255,2]
[360752208,1746973833050,-1100.55847229,0.00014255,2]
[360752209,1746973833060,-1100.55847229,0.00014255,2]
[360752210,1746973833071,-1100.55847229,0.00014255,2]
[360752211,1746973833081,-1100.55847229,0.00014255,2]
[360752212,1746973833091,-1100.55847229,0.00014255,2]
[360752213,1746973833102,-1100.55847229,0.00014255,2]
[360752214,1746973833112,-514.39032032,0.00014255,2]
[360752215,1746973833206,-586.16815197,0.00014255,2]
[360752216,1746973833217,-1100.55847229,0.00014255,2]
[360752217,1746973833227,-1100.55847229,0.00014255,2]
[360752218,1746973833238,-1100.55847229,0.00014255,2]
[360752219,1746973833248,-1100.55847229,0.00014255,2]
[360752220,1746973833259,-1100.55847229,0.00014255,2]
[360752221,1746973833270,-1100.55847229,0.00014255,2]
[360752222,1746973833280,-1104.5605031,0.00014255,2]
[360752223,1746973833291,-1104.5605031,0.00014255,2]
[360752224,1746973833301,-1104.5605031,0.00014255,2]
[360752225,1746973833311,-1104.5605031,0.00014255,2]
[360752226,1746973833321,-1104.5605031,0.00014255,2]
[360752227,1746973833331,-1104.5605031,0.00014255,2]
[360752228,1746973833341,-1104.5605031,0.00014255,2]
[360752229,1746973833352,-1104.5605031,0.00014255,2]
[360752230,1746973833362,-1104.5605031,0.00014255,2]
[360752231,1746973833372,-1104.5605031,0.00014255,2]
[360752232,1746973833382,-1104.5605031,0.00014255,2]
[360752233,1746973833391,-1104.5605031,0.00014255,2]
[360752234,1746973833402,-1104.5605031,0.00014255,2]
[360752235,1746973833411,-1104.5605031,0.00014255,2]
[360752236,1746973833421,-1104.5605031,0.00014255,2]
[360752237,1746973833430,-1104.5605031,0.00014255,2]
[360752238,1746973833440,-1104.5605031,0.00014255,2]
[360752239,1746973833450,-1104.5605031,0.00014255,2]
[360752240,1746973833459,-1104.5605031,0.00014255,2]
[360752241,1746973833470,-1104.5605031,0.00014255,2]
[360752242,1746973833480,-1104.56050314,0.00014255,2]
[360752243,1746973833490,-1104.56050314,0.00014255,2]
[360752244,1746973833504,-8465.44397923,0.00014257,2]
[360752245,1746973833514,-1819.41,0.00014424,2]
[360752246,1746973833525,-863.53778421,0.00014619,2]
[360752247,1746973833536,-164.99,0.00014778,2]
[360752248,1746973833546,-3451.41209424,0.00014833,2]
[360752249,1746973833555,-12071.13056833,0.00014838,2]
[360752250,1746973834041,-428.86943167,0.00014838,2]
[360752251,1746973834050,-166.38217378,0.0001489,2]
[360752252,1746973834060,-44263.2922,0.0001489,2]
[360752253,1746973834069,-353.48541037,0.00014891,2]
[360752254,1746973834079,-5800.0,0.00014891,2]
[360752255,1746973834088,-353.48541029,0.00014892,2]
[360752256,1746973834098,-166.38217374,0.00014893,2]
[360752257,1746973834107,-353.48541029,0.00014893,2]
[360752258,1746973834116,-353.48541029,0.00014894,2]
[360752259,1746973834126,-166.38217374,0.00014895,2]
[360752260,1746973834136,-353.48541029,0.00014895,2]
[360752261,1746973834146,-353.48541029,0.00014896,2]
[360752262,1746973834155,-353.48541029,0.00014897,2]
[360752263,1746973834165,-166.38217374,0.00014898,2]
[360752264,1746973834175,-3494.313,0.00014898,2]
[360752265,1746973834185,-353.48541029,0.00014898,2]
[360752266,1746973834196,-177.796,0.00014899,2]
[360752267,1746973834206,-1375.80652546,0.000149,2]
[360752268,1746973834216,-16851.0356,0.000149,2]
[360752269,1746973834226,-908.23196971,0.000149,2]
[360752270,1746973834235,-158.90007297,0.000149,2]
[360752271,1746973834245,-184.04854355,0.000149,2]
[360752272,1746973834256,-166.38217374,0.000149,2]
[360752273,1746973834266,-953.7862985,0.000149,2]
[360752274,1746973834276,-5800.0,0.000149,2]
[360752275,1746973834285,-184.51,0.00014963,2]
[360752276,1746973834295,-184.51,0.00014963,2]
[360752277,1746973834305,-207.4,0.00014964,2]
[360752278,1746973834314,-499.99,0.00014973,2]
[360752279,1746973834324,-1035.23,0.00014973,2]
[360752280,1746973834333,-150.99,0.00014973,2]
[360752281,1746973834343,-292.7,0.00014973,2]
[360752282,1746973834353,-6913.46699223,0.00014973,2]
[360752283,1746973834397,-3086.52300777,0.00014973,2]
[360752284,1746973834407,-3264.1,0.00014973,2]
[360752285,1746973834416,-650.1084679,0.00014973,2]
[360752289,1746973838690,-22.17043147,0.00014899,2]
[360752290,1746973838712,-331.31497882,0.00014899,2]
[360752291,1746973838721,-7820.6215321,0.00014973,2]
[360752292,1746973838731,-3662.09,0.00014973,2]
[360752293,1746973838740,-999.99,0.00014973,2]
[360752294,1746973838749,-500.0,0.00014973,2]
[360752295,1746973838758,-500.0,0.00014973,2]
[360752296,1746973838767,-500.0,0.00014973,2]
[360752297,1746973838776,-500.0,0.00014973,2]
[360752298,1746973838785,-500.0,0.00014973,2]
[360752299,1746973838794,-184.51,0.00014979,2]
[360752300,1746973838804,-184.51,0.00014979,2]
[360752302,1746973838813,-184.51,0.0001498,2]
[360752303,1746973838822,-184.51,0.0001498,2]
[360752305,1746973838831,-184.51,0.0001498,2]
[360752307,1746973838840,-184.51,0.0001498,2]
[360752310,1746973838849,-184.51,0.0001498,2]
[360752313,1746973838858,-184.51,0.0001498,2]
[360752315,1746973838867,-3868.8379288,0.00014989,2]
[360752318,1746973838877,-43652.8714999,0.00014989,2]
[360752320,1746973838888,-5154.5784284,0.0001499,2]
[360752322,1746973838897,-6440.3189279,0.0001499,2]
[360752323,1746973838906,-7726.0594274,0.0001499,2]
[360752324,1746973838915,-55034.0562333,0.0001499,2]
[360752325,1746973838924,-33157.87210492,0.0001499,2]
[360752326,1746973840625,-2149.99999,0.0001499,2]
[360752327,1746973840641,-31107.36887168,0.0001499,2]
[360752328,1746973840651,-77796.4256999,0.0001499,2]
[360752329,1746973840661,-151.0,0.00014991,2]
[360752330,1746973840671,-151.0,0.00014991,2]
[360752331,1746973840682,-155.0,0.00014991,2]
[360752332,1746973840691,-668.65185757,0.00014991,2]
[360752333,1746973840701,-150.0,0.00014999,2]
[360752334,1746973840711,-150.0,0.00014999,2]
[360752335,1746973840720,-150.0,0.00014999,2]
[360752336,1746973840730,-150.0,0.00014999,2]
[360752337,1746973840740,-150.0,0.00014999,2]
[360752338,1746973840749,-150.0,0.00014999,2]
[360752339,1746973840758,-161.51333965,0.00014999,2]
[360752340,1746973840767,-300.0,0.00014999,2]
[360752341,1746973840777,-300.0,0.00014999,2]
[360752342,1746973840787,-300.0,0.00014999,2]
[360752343,1746973840797,-508.0,0.00015,2]
[360752344,1746973840808,-248171.49464424,0.00015,2]
[360752345,1746973840821,-3382.9988002,0.00015,2]
[360752346,1746973840865,-353.48541029,0.000149,2]
[360752347,1746973840875,-71296.14926129,0.00015,2]
[360752348,1746973840890,-478532.23650879,0.00015,2]
[360752349,1746973840901,-54258.12933204,0.00015,2]
[360752352,1746973841292,-282170.49541332,0.00015,2]
[360752353,1746973841304,-13606.12491355,0.00015,2]
[360752354,1746973841347,-400.07483383,0.00015,2]
[360752361,1746973843422,-460.65392046,0.00015,2]
[360752363,1746973843634,-8437.98232835,0.00015,2]
[360752364,1746973843662,-20111.39752811,0.00015,2]
[360752365,1746973843673,-29066.8,0.00015,2]
[360752366,1746973843727,-972070.00000045,0.00015,2]
[360752367,1746973843859,-39.35596286,0.00015,2]
[360752368,1746973843904,-320061.62196418,0.00015,2]
[360752369,1746973843917,-998.4474503,0.00015,2]
[360752371,1746973846390,-1859.93188352,0.00014791,2]
[360752372,1746973846400,-13640.87077217,0.000149,2]
[360752373,1746973846410,-18759.2082933,0.00015,2]
[360752374,1746973846422,-10980.63456963,0.00015,2]
[360752375,1746973846434,-17564.2213333,0.00015,2]
[360752376,1746973846451,-5198.40341873,0.00015,2]
[360752377,1746973847270,-361290.97139116,0.00015,2]
[360752378,1746973847296,-8894.21247073,0.00015,2]
[360752379,1746973847307,-152317.44822849,0.00015,2]
[360752380,1746973847551,-32.01401563,0.00015,2]
[360752381,1746973847571,-5190.0,0.00015,2]
[360752382,1746973863729,-250.0,0.00014253,2]
[360752383,1746973866871,-234.96823994,0.00014253,2]
[360752384,1746973880917,-86.07923521,0.00014253,2]
[360752385,1746973887451,-171.33943273,0.00014253,2]
[360752386,1746973895316,-164.249341,0.00014253,2]
[360752387,1746973911286,-164.41122627,0.00014253,2]
[360752388,1746973911319,-130.61821649,0.00014253,2]
[360752389,1746973925277,-233.29908279,0.00014252,2]
[360752390,1746973940292,-66.70091721,0.00014252,2]
[360752391,1746973940316,-191.70927231,0.00014262,2]
[360752392,1746973955772,-258.41018952,0.00014226,2]
[360752393,1746973970300,-180.42684345,0.00014226,2]
[360752394,1746973985847,-250.0,0.00014226,2]
[360752395,1746974001164,-152.0,0.00014226,2]
[360752396,1746974011818,310.46,0.00014141,2]
[360752397,1746974012026,310.46,0.00014145,2]
[360752398,1746974012232,310.46,0.00014148,2]
[360752399,1746974012626,310.46,0.00014152,2]
[360752400,1746974012699,310.46,0.00014156,2]
[360752401,1746974012846,310.46,0.0001416,2]
[360752402,1746974013053,310.46,0.00014163,2]
[360752403,1746974013264,310.46,0.00014167,2]
[360752404,1746974013510,310.46,0.00014171,2]
[360752405,1746974013696,310.46,0.00014175,2]
[360752406,1746974013890,310.46,0.00014178,2]
[360752407,1746974014222,310.46,0.00014182,2]
[360752408,1746974014341,310.46,0.00014186,2]
[360752409,1746974014579,310.46,0.00014189,2]
[360752410,1746974014784,310.46,0.00014193,2]
[360752411,1746974014983,310.46,0.00014197,2]
[360752412,1746974015293,-310.46,0.00014201,2]
[360752413,1746974015317,-159.16296703,0.00014226,2]
[360752414,1746974015340,-13.41157825,0.00014262,2]
[360752415,1746974030308,-170.39504816,0.00014204,2]
[360752416,1746974045279,-140.06495184,0.00014204,2]
[360752417,1746974045303,-107.0914964,0.00014208,2]
[360752418,1746974060452,-203.3685036,0.00014208,2]
[360752419,1746974060489,-24.82504816,0.00014212,2]
[360752420,1746974062297,200.0,0.00014,2]
[360752421,1746974063429,200.0,0.00012,2]
[360752422,1746974075245,-250.0,0.00014212,2]
[360752423,1746974090300,-35.63495184,0.00014212,2]
[360752424,1746974090324,-203.33291752,0.00014223,2]
[360752425,1746974090357,-24.27106723,0.00014223,2]
[360752426,1746974097140,222.726396,0.0001414,2]
[360752427,1746974105847,-200.0,0.00014222,2]
[360752428,1746974116185,200.0,0.0001415,2]
[360752429,1746974120246,-200.0,0.00014222,2]
[360752430,1746974132669,200.0,0.0001415,2]
[360752431,1746974135255,-264.25081543,0.00014222,2]
[360752432,1746974149171,264.250815,0.0001415,2]
[360752433,1746974150253,-269.18136954,0.00014222,2]
[360752434,1746974166369,-266.56781503,0.00014222,2]
[360752435,1746974166414,-38.54100066,0.00014222,2]
[360752436,1746974166692,269.18137,0.0001415,2]
[360752437,1746974180842,-261.45899934,0.00014222,2]
[360752438,1746974180865,-77.7036411,0.00014222,2]
[360752439,1746974196395,-72.2963589,0.00014222,2]
[360752440,1746974196419,-224.26628154,0.00014222,2]
[360752441,1746974210503,-473.57115811,0.00014222,2]
[360752442,1746974226352,-264.71967137,0.00014221,2]
[360752443,1746974240535,-35.28032863,0.00014221,2]
[360752444,1746974240569,-26.42884189,0.00014222,2]
[360752445,1746974240603,-138.29082948,0.00014222,2]
[360752446,1746974255793,-200.0,0.00014222,2]
[360752447,1746974270338,-161.70917052,0.00014222,2]
[360752448,1746974270374,-38.29082948,0.00014222,2]
[360752449,1746974285325,-305.42959344,0.00014222,2]
[360752450,1746974288273,447.771979,7.945e-05,2]
[360752451,1746974300329,-152.0,0.00014222,2]
[360752452,1746974336782,252.79759087,0.00014149,2]
[360752453,1746974352900,208.27,0.00013699,2]
[360752454,1746974378004,505.42959344,0.00014021,2]
[360752455,1746974408732,1171.51,0.00014145,2]
[360752456,1746974425130,1202.63,0.00014123,2]
[360752457,1746974446927,250.0,0.00014101,2]
[360752458,1746974470290,500.0,0.00014101,2]
[360752459,1746974484129,164.2,0.00011298,2]
[360752461,1746974624004,150.0,0.00014201,2]
[360752462,1746974633437,24002.73764379,0.00018,5]
[360752463,1746974633464,15997.26235621,0.00018,5]
[360752464,1746974698216,500.0,0.00018,5]
[360752465,1746974714452,509.651,0.00018,10]
[360752466,1746974721645,500.0,0.00018,5]
[360752467,1746974726327,-331.756,0.0001422,2]
[360752468,1746974733565,3591.23225569,0.00014108,2]
[360752469,1746974733588,10000.0,0.00014108,2]
[360752470,1746974733610,10000.0,0.00014108,2]
[360752471,1746974733632,308.76774431,0.00014108,2]
[360752472,1746974756602,1932.58,0.00014108,2]
[360752473,1746974788806,1980.06,0.00014,2]
[360752475,1746974830139,-500.0,0.00014219,2]
[360752476,1746974830169,-500.0,0.00014219,2]
[360752477,1746974830199,-98.78322971,0.00014219,2]
[360752478,1746974848727,200.0,0.00013937,2]
[360752479,1746974851647,204.82105068,0.00014119,2]
[360752480,1746974899642,150.0,0.00013932,2]
[360752482,1746974910983,5223.77120501,0.00013932,2]
[360752483,1746974911005,10000.0,0.00013932,2]
[360752484,1746974911026,10000.0,0.00013932,2]
[360752485,1746974911050,4401.30879499,0.00013932,2]
[360752486,1746974911592,445.86049311,0.00028,120]
[360752495,1746974964084,-150.0,0.00014218,2]
[360752496,1746974964117,-500.0,0.00014218,2]
[360752497,1746974964148,-500.0,0.00014218,2]
[360752498,1746974964178,-500.0,0.00014218,2]
[360752499,1746974964210,-500.0,0.00014218,2]
[360752500,1746974964240,-18.4707561,0.00014218,2]
[360752501,1746974969069,1842.94,0.00012019,2]
[360752502,1746974985312,2048.63,0.00013932,2]
[360752505,1746975003312,-199.56662921,0.00014217,2]
[360752506,1746975007285,-159.00887079,0.00014217,2]
[360752507,1746975027867,358.5755,0.00014145,2]
[360752515,1746975031680,-841.4245,0.00014217,2]
[360752516,1746975031690,-300.0,0.00014217,2]
[360752517,1746975031700,-300.0,0.00014217,2]
[360752518,1746975031710,-481.5292439,0.00014218,2]
[360752519,1746975031720,-500.0,0.00014218,2]
[360752520,1746975031729,-500.0,0.00014218,2]
[360752521,1746975031739,-500.0,0.00014218,2]
[360752522,1746975031748,-500.0,0.00014218,2]
[360752523,1746975031757,-500.0,0.00014218,2]
[360752524,1746975031767,-500.0,0.00014218,2]
[360752525,1746975031777,-595.63243869,0.00014218,2]
[360752526,1746975031786,-500.0,0.00014218,2]
[360752527,1746975031795,-500.0,0.00014218,2]
[360752528,1746975031805,-500.0,0.00014218,2]
[360752529,1746975031814,-250.0,0.00014219,2]
[360752530,1746975031825,-191.81396955,0.00014261,2]
[360752531,1746975031834,-187.17479202,0.00014261,2]
[360752532,1746975031844,-204.73548389,0.00014261,2]
[360752533,1746975031854,-230.52907413,0.00014261,2]
[360752534,1746975031863,-1177.03217502,0.00014262,2]
[360752536,1746975031882,-332.76697442,0.00014262,2]
[360752538,1746975031891,-696.23302558,0.00014283,2]
[360752542,1746975031922,-1146.70697442,0.00014283,2]
[360752544,1746975031934,-643.3835073,0.00014537,2]
[360752546,1746975031943,-1138.0,0.000147,2]
[360752548,1746975031952,-78.26026648,0.00014767,2]
[360752550,1746975031964,-421.73973352,0.00014767,2]
[360752552,1746975031974,-621.9567,0.0001479,2]
[360752554,1746975031983,-204.82105068,0.000148,2]
[360752556,1746975031993,-1000.0,0.000148,2]
[360752558,1746975032002,-1912.26835931,0.0001489,2]
[360752560,1746975032011,-207.4,0.00014891,2]
[360752562,1746975032022,-1912.26835925,0.00014891,2]
[360752564,1746975032031,-1912.26835925,0.00014892,2]
[360752566,1746975032040,-1912.26835925,0.00014893,2]
[360752568,1746975032049,-1912.26835925,0.00014894,2]
[360752570,1746975032058,-1912.26835925,0.00014896,2]
[360752572,1746975032070,-1912.26835925,0.00014897,2]
[360752574,1746975032079,-1912.26835925,0.00014898,2]
[360752576,1746975032089,-1912.26835925,0.00014899,2]
[360752577,1746975032098,-3626.095,0.000149,2]
[360752578,1746975032107,-257.44156107,0.000149,2]
[360752579,1746975032118,-771.7974,0.000149,2]
[360752580,1746975032127,-534.7314,0.000149,2]
[360752581,1746975032137,-9995.9897,0.000149,2]
[360752582,1746975032148,-150.99,0.000149,2]
[360752583,1746975032157,-150.99,0.000149,2]
[360752584,1746975032167,-3091.7606,0.000149,2]
[360752585,1746975032176,-1956.72833378,0.000149,2]
[360752593,1746975037675,-8954.76776622,0.000149,2]
[360752594,1746975037686,-179.88869116,0.000149,2]
[360752595,1746975037695,-5800.0,0.000149,2]
[360752596,1746975037706,-1912.26835925,0.000149,2]
[360752597,1746975037716,-172.46277441,0.000149,2]
[360752598,1746975037728,-529.95597421,0.000149,2]
[360752599,1746975037739,-452.19783581,0.00014908,2]
[360752600,1746975037750,-6598.97,0.00014908,2]
[360752601,1746975037759,-2029.112446,0.00014924,2]
[360752602,1746975037769,-500.0,0.00014973,2]
[360752603,1746975037778,-183.75992202,0.00014973,2]
[360752604,1746975037788,-500.0,0.00014973,2]
[360752605,1746975037797,-500.0,0.00014973,2]
[360752606,1746975037812,-500.0,0.00014973,2]
[360752607,1746975037826,-500.0,0.00014973,2]
[360752608,1746975037837,-500.0,0.00014973,2]
[360752609,1746975037847,-500.0,0.00014973,2]
[360752610,1746975037858,-500.0,0.00014973,2]
[360752611,1746975037867,-553.24587881,0.00014973,2]
[360752612,1746975037877,-500.0,0.00014973,2]
[360752613,1746975037887,-3883.0,0.00014986,2]
[360752614,1746975037897,-8850.4310746,0.00014989,2]
[360752615,1746975037906,-7146.82501013,0.00014989,2]
[360752633,1746975038205,-84857.27699517,0.00014989,2]
[360752634,1746975038215,-3880.5337664,0.00014989,2]
[360752635,1746975038225,-8224.4605132,0.0001499,2]
[360752636,1746975038234,-7598.4899518,0.0001499,2]
[360752637,1746975038244,-85496.8642342,0.0001499,2]
[360752638,1746975038254,-3615.6096167,0.0001499,2]
[360752639,1746975038264,-171.12312442,0.0001499,2]
[360752640,1746975038273,-151.0,0.00014991,2]
[360752641,1746975038282,-151.0,0.00014991,2]
[360752642,1746975038291,-668.65185757,0.00014991,2]
[360752643,1746975038301,-1000.0,0.00014999,2]
[360752644,1746975038310,-300.0,0.00014999,2]
[360752645,1746975038319,-300.0,0.00014999,2]
[360752646,1746975038330,-300.0,0.00014999,2]
[360752647,1746975038340,-501.0,0.00015,2]
[360752648,1746975038349,-111307.34994052,0.00015,2]
[360752649,1746975038366,-2409.025,0.00015,2]
[360752650,1746975038456,-989.22086792,0.00015,2]
[360752656,1746975039771,-1194.39248921,0.00015,2]
[360752657,1746975039795,-336.0581857,0.00015,2]
[360752663,1746975040509,-271.71140522,0.00015,2]
[360752664,1746975040521,-9445.83967799,0.00015,2]
[360752665,1746975040532,-39048.62998452,0.00015,2]
[360752666,1746975040544,-25773.43619561,0.00015,2]
[360752667,1746975040555,-37629.11238824,0.00015,2]
[360752668,1746975040962,-340013.09861279,0.00015,2]
[360752688,1746975043611,-1171.17000487,0.00015,2]
[360752689,1746975043674,-322165.77648235,0.00015,2]
[360752691,1746975045522,-251.13762837,0.00015,2]
[360752692,1746975045630,-324.2843821,0.00015,2]
[360752693,1746975045641,-17179.94179039,0.00015,2]
[360752694,1746975045653,-591179.06488654,0.00015,2]
[360752695,1746975045663,-121268.609974,0.00015,2]
[360752696,1746975045675,-23309.9083952,0.00015,2]
[360752698,1746975046056,-357151.24558669,0.00015,2]
[360752792,1746975052679,-66899.4046402,0.00015,2]
[360752793,1746975052691,-3779.05073902,0.00015,2]
[360752794,1746975052703,-2738.99008331,0.00015,2]
[360752795,1746975052720,-2893.26,0.00015,2]
[360752796,1746975052734,-4161.1,0.00015,2]
[360752797,1746975052760,-11016.0896373,0.00015,2]
[360752798,1746975052772,-8206.34140981,0.00015,2]
[360752799,1746975052793,-703.56028245,0.00015,2]
[360752800,1746975052864,-370297.23296232,0.00015,2]
[360752801,1746975142248,-336.363,0.00014216,2]
[360752803,1746975442545,197.85,0.00013699,2]
[360752804,1746975446570,498.901774,0.00014142,2]
[360752805,1746975466208,199.31543314,0.00014114,2]
[360752806,1746975528484,250.0,0.00014159,2]
[360752807,1746975607899,204.55819555,0.00014196,2]
[360752809,1746975642399,150.0,0.00018,5]
[360752810,1746975695389,3082.62984312,0.0001411,2]
[360752811,1746975700410,3082.6298431,0.00014198,2]
[360752812,1746975726016,498.901774,0.00014139,2]
[360752813,1746975731018,749.97,0.00013883,2]
[360752814,1746975793395,199.31543314,0.00014109,2]
[360752815,1746975812121,534.02,0.00013794,2]
[360752816,1746975825281,-150.0,0.00014208,2]
[360752817,1746975825307,-161.37035189,0.00014209,2]
[360752818,1746975825330,-500.0,0.00014209,2]
[360752819,1746975825356,-201.73429737,0.00014209,2]
[360752820,1746975825383,-500.0,0.00014209,2]
[360752821,1746975825408,-500.0,0.00014209,2]
[360752822,1746975825434,-500.0,0.00014209,2]
[360752823,1746975825468,-500.0,0.00014209,2]
[360752824,1746975825493,-500.0,0.00014209,2]
[360752825,1746975825516,-500.0,0.00014209,2]
[360752826,1746975825549,-500.0,0.00014209,2]
[360752827,1746975825572,-500.0,0.00014209,2]
[360752828,1746975825605,-500.0,0.00014209,2]
[360752829,1746975825638,-500.0,0.00014209,2]
[360752830,1746975825661,-500.0,0.00014209,2]
[360752831,1746975825694,-500.0,0.00014209,2]
[360752832,1746975825718,-567.24298549,0.00014209,2]
[360752833,1746975825750,-343.89820894,0.00014209,2]
[360752834,1746975825781,-500.0,0.00014209,2]
[360752835,1746975825811,-500.0,0.00014209,2]
[360752836,1746975825840,-500.0,0.00014209,2]
[360752837,1746975825871,-500.0,0.00014209,2]
[360752838,1746975825900,-500.0,0.00014209,2]
[360752839,1746975825929,-500.0,0.00014209,2]
[360752840,1746975825958,-500.0,0.00014209,2]
[360752841,1746975825988,-500.0,0.00014209,2]
[360752842,1746975826020,-500.0,0.00014209,2]
[360752843,1746975826050,-500.0,0.00014209,2]
[360752844,1746975826079,-500.0,0.00014209,2]
[360752845,1746975826109,-500.0,0.00014209,2]
[360752846,1746975826140,-500.0,0.00014209,2]
[360752847,1746975826169,-500.0,0.00014209,2]
[360752848,1746975826196,-500.0,0.00014209,2]
[360752849,1746975826224,-500.0,0.00014209,2]
[360752850,1746975826256,-500.0,0.00014209,2]
[360752851,1746975826285,-500.0,0.00014209,2]
[360752852,1746975826319,-500.0,0.00014209,2]
[360752853,1746975826347,-500.0,0.00014209,2]
[360752854,1746975826375,-500.0,0.00014209,2]
[360752855,1746975826406,-500.0,0.00014209,2]
[360752856,1746975826434,-500.0,0.00014209,2]
[360752857,1746975826462,-500.0,0.00014209,2]